bitfinex/quotes_SOLUSD_20240725
["timestamp","ask_amount","ask_price","bid_price","bid_amount"]
[1721930492887,22.5671,171.17,171.01,1.1688931]
[1721930493083,22.5671,171.17,171.02,1.16895812]
[1721930493613,5.8434,171.14,170.96,6.4216]
[1721930493910,16.3612,171.1,170.95,20.0]
[1721930494083,396.8612,171.1,170.96,1.1694537]
[1721930494792,396.8612,171.1,170.97,1.16942169]
[1721930495001,396.8612,171.1,170.92,15.73352307]
[1721930495002,5.845,171.09,170.94,1.16950307]
[1721930495304,396.8612,171.1,170.94,1.16950307]
[1721930495607,6.1392,171.09,170.94,1.16950307]
[1721930495981,11.984,171.09,170.94,1.16950307]
[1721930496177,11.984,171.09,170.91,7.72471484]
[1721930496178,380.5,171.08,170.91,7.72471484]
[1721930496423,15.2105,171.14,171.03,20.0]
[1721930496593,15.2105,171.14,171.04,1.168726]
[1721930496784,15.2105,171.14,171.05,1.16875489]
[1721930497608,15.2105,171.14,171.05,66.16875489]
[1721930499306,15.2105,171.14,171.06,20.0]
[1721930499504,15.2105,171.14,171.07,46.16862889]
[1721930499689,15.2105,171.14,171.08,20.0]
[1721930500016,15.2105,171.14,171.09,45.0]
[1721930500217,15.2105,171.14,171.1,20.0]
[1721930500514,15.2105,171.14,171.11,45.0]
[1721930502101,15.2105,171.14,171.03,20.0]
[1721930502300,15.2105,171.14,170.97,63.10537064]
[1721930502301,15.2105,171.14,171.04,21.16881982]
[1721930502510,15.2105,171.14,171.05,1.16872211]
[1721930502711,15.2105,171.14,171.04,20.0]
[1721930502712,15.2105,171.14,171.04,21.16871842]
[1721930502919,15.2105,171.14,171.05,1.16881924]
[1721930503217,15.2105,171.14,171.04,21.16882746]
[1721930503412,15.2105,171.14,171.05,1.16882746]
[1721930504012,15.2105,171.14,171.04,21.16872437]
[1721930504207,15.2105,171.14,171.05,1.16882194]
[1721930505194,15.2105,171.14,170.95,43.412826]
[1721930505195,16.6278,171.11,170.95,23.412826]
[1721930505394,386.3446,171.1,170.95,23.412826]
[1721930506416,386.3446,171.1,170.97,20.0]
[1721930506417,15.2954,171.09,170.97,20.0]
[1721930506715,15.2954,171.09,170.98,1.16910655]
[1721930506895,15.2954,171.09,170.99,1.16918801]
[1721930507221,15.2954,171.09,170.95,1.16938612]
[1721930507396,15.2954,171.09,170.96,1.16938612]
[1721930508507,15.2954,171.09,170.94,7.27064748]
[1721930509011,15.2954,171.09,170.94,27.27064748]
[1721930509217,15.2954,171.09,170.95,20.0]
[1721930509514,15.2954,171.09,170.96,21.16930332]
[1721930509816,15.2954,171.09,170.97,65.0]
[1721930510221,15.2954,171.09,170.98,1.16929651]
[1721930510518,15.2954,171.09,170.97,65.0]
[1721930510519,15.2954,171.09,170.97,66.16917478]
[1721930512525,15.2954,171.09,170.97,20.0]
[1721930512718,15.2954,171.09,170.95,21.1694328]
[1721930513026,15.2954,171.09,170.95,20.0]
[1721930513726,21.1405,171.09,170.95,20.0]
[1721930513905,40.7,171.08,170.95,20.0]
[1721930514102,6.0314,171.07,170.95,20.0]
[1721930514713,6.0314,171.07,170.96,1.16968988]
[1721930515033,6.0314,171.07,170.95,20.0]
[1721930515327,6.0314,171.07,170.96,45.0]
[1721930515538,6.0314,171.07,170.96,46.16955351]
[1721930515698,6.0314,171.07,170.96,45.0]
[1721930516211,39.3314,171.07,170.96,45.0]
[1721930516822,39.3314,171.07,170.96,46.16945358]
[1721930517312,39.3314,171.07,170.96,45.0]
[1721930517710,6.0314,171.07,170.96,46.1694478]
[1721930518022,6.0314,171.07,170.97,20.0]
[1721930518228,6.0314,171.07,170.98,45.0]
[1721930518394,39.3314,171.07,170.98,45.0]
[1721930519510,33.3,171.03,170.91,1.1696436]
[1721930519711,33.3,171.03,170.89,21.16986067]
[1721930520017,33.3,171.03,170.9,7.28212252]
[1721930520318,33.3,171.03,170.91,20.0]
[1721930520501,33.3,171.03,170.92,1.16985923]
[1721930520702,33.3,171.03,170.93,1.16975248]
[1721930520903,33.3,171.03,170.91,20.0]
[1721930521442,33.3,170.99,170.9,6.11226628]
[1721930521598,33.3,170.99,170.88,6.90371377]
[1721930521794,33.3,170.99,170.88,1.01771377]
[1721930521795,15.9521,170.98,170.88,1.01771377]
[1721930522001,33.3,170.95,170.88,1.01771377]
[1721930522226,33.3,170.95,170.8,1.17030768]
[1721930522528,33.3,170.95,170.83,1.01879828]
[1721930522720,33.3,170.95,170.8,1.17054054]
[1721930522903,33.3,170.95,170.82,1.01879484]
[1721930523728,16.4013,170.94,170.82,1.01879484]
[1721930523895,33.3,170.91,170.82,1.01879484]
[1721930524328,6.1678,170.9,170.82,1.01879484]
[1721930524504,16.4013,170.89,170.76,0.5]
[1721930524706,16.4013,170.89,170.78,1.01910864]
[1721930525234,16.4013,170.89,170.81,20.0]
[1721930525533,16.4013,170.94,170.84,20.0]
[1721930525716,16.4013,170.94,170.85,21.17010293]
[1721930525919,16.4013,170.94,170.86,1.17004102]
[1721930526435,16.4013,170.94,170.86,46.17004102]
[1721930527014,16.4013,170.94,170.86,46.170276]
[1721930527245,16.4013,170.94,170.86,45.0]
[1721930527419,16.4013,170.94,170.86,46.17013139]
[1721930527618,16.4013,170.94,170.86,45.0]
[1721930528223,16.4013,170.94,170.85,20.0]
[1721930528443,16.4013,170.94,170.8,21.17040622]
[1721930529046,16.4013,170.94,170.8,1.17040622]
[1721930529821,33.3,170.93,170.8,1.17040622]
[1721930530250,33.3,170.93,170.78,8.07568192]
[1721930530844,33.3,170.93,170.78,6.90510864]
[1721930531025,15.0302,170.91,170.78,6.90510864]
[1721930531225,33.3,170.89,170.78,6.90510864]
[1721930531450,15.0302,170.91,170.79,1.17085385]
[1721930531823,15.0302,170.91,170.8,1.17065415]
[1721930532251,15.0302,170.91,170.8,21.17065415]
[1721930532650,30.0,170.88,170.81,1.17047673]
[1721930532852,30.0,170.88,170.81,46.17047673]
[1721930533158,30.0,170.88,170.79,20.0]
[1721930533159,30.0,170.88,170.82,21.17048926]
[1721930533330,30.0,170.88,170.83,45.0]
[1721930533531,30.0,170.88,170.84,20.0]
[1721930534138,30.0,170.88,170.85,45.0]
[1721930534547,30.0,170.88,170.83,45.0]
[1721930534755,30.0,170.88,170.84,20.0]
[1721930534964,15.0302,170.91,170.85,45.0]
[1721930536528,15.0302,170.91,170.86,21.17030051]
[1721930536728,15.0302,170.91,170.87,45.0]
[1721930537535,16.3887,170.96,170.88,21.17019363]
[1721930537731,16.3887,170.96,170.89,65.0]
[1721930537940,16.3887,170.96,170.9,1.16984787]
[1721930538734,16.3887,170.96,170.89,86.16985149]
[1721930538933,16.3887,170.96,170.89,66.16985149]
[1721930539649,22.6843,171.01,170.9,21.16985174]
[1721930539856,22.6843,171.01,170.91,65.0]
[1721930540169,22.6843,171.01,170.92,1.16960572]
[1721930540341,22.6843,171.01,170.93,21.16959603]
[1721930540541,16.3457,171.01,170.94,65.0]
[1721930540765,16.3457,171.01,170.95,1.1694995]
[1721930541142,16.3457,171.01,170.94,20.0]
[1721930541461,16.3457,171.01,170.88,20.0]
[1721930541770,16.3457,171.01,170.89,1.16997206]
[1721930542336,16.3457,171.01,170.9,1.16980093]
[1721930543462,16.3457,171.01,170.91,20.0]
[1721930543655,16.3457,171.01,170.92,46.16966601]
[1721930543846,16.3457,171.01,170.93,21.16958796]
[1721930544043,16.3457,171.01,170.94,45.0]
[1721930544241,16.3457,171.01,170.95,20.0]
[1721930544559,16.3457,171.01,170.96,45.0]
[1721930545150,16.3457,171.01,170.95,20.0]
[1721930545340,16.3457,171.01,170.87,20.0]
[1721930545661,16.3457,171.01,170.87,1.16990491]
[1721930546739,16.3457,171.01,170.85,20.0]
[1721930546740,6.6284,171.0,170.84,1.01808385]
[1721930546939,6.6284,171.0,170.86,45.0]
[1721930547242,6.6284,171.0,170.87,1.17013006]
[1721930548663,6.6284,171.0,170.87,21.17013006]
[1721930548959,6.6284,171.0,170.88,45.0]
[1721930549175,33.3,170.99,170.84,1.01808385]
[1721930549471,6.2799,170.94,170.84,1.01808385]
[1721930550565,15.2494,170.93,170.84,1.01808385]
[1721930550861,15.2494,170.93,170.77,6.1163469]
[1721930551037,33.3,170.91,170.81,1.0189039]
[1721930551247,21.4127,170.9,170.76,0.5]
[1721930551438,5.8527,170.87,170.76,1.51914127]
[1721930551639,5.852,170.89,170.76,1.51914127]
[1721930552264,27.2641,170.9,170.76,1.51914127]
[1721930552433,21.4127,170.9,170.77,1.17097418]
[1721930552856,21.4127,170.9,170.77,46.17097418]
[1721930553043,21.4127,170.9,170.78,20.0]
[1721930553240,21.4127,170.9,170.79,46.17061085]
[1721930553434,21.4127,170.9,170.8,20.0]
[1721930553654,15.0043,170.9,170.84,20.0]
[1721930553975,22.951,170.95,170.85,66.17020919]
[1721930554143,22.951,170.95,170.86,1.17005706]
[1721930554460,22.951,170.95,170.85,66.17005955]
[1721930554668,22.951,170.95,170.85,65.0]
[1721930554969,22.951,170.95,170.85,20.0]
[1721930555167,22.951,170.95,170.8,20.0]
[1721930555374,28.8007,170.95,170.8,21.17052962]
[1721930555663,28.8007,170.95,170.8,1.17052962]
[1721930555865,28.8007,170.95,170.78,21.17054622]
[1721930556169,22.951,170.95,170.78,21.17054622]
[1721930556864,39.1503,170.93,170.78,20.0]
[1721930557160,39.1503,170.93,170.76,8.02224127]
[1721930557161,5.8507,170.92,170.77,20.0]
[1721930557359,396.5318,170.91,170.76,1.51914127]
[1721930557660,6.2628,170.9,170.76,1.51914127]
[1721930558076,12.1142,170.9,170.76,1.51914127]
[1721930558242,392.6142,170.9,170.76,1.51914127]
[1721930558565,386.7628,170.9,170.76,1.51914127]
[1721930558754,386.7628,170.9,170.77,1.17097841]
[1721930559140,33.3,170.89,170.77,1.17097841]
[1721930560443,33.3,170.85,170.76,1.51914127]
[1721930560661,33.3,170.85,170.76,0.5]
[1721930568161,22.1955,170.93,170.82,20.0]
[1721930568471,22.1955,170.93,170.84,20.0]
[1721930568673,22.1955,170.93,170.85,66.17015687]
[1721930568865,22.1955,170.93,170.86,1.17015773]
[1721930569478,15.5516,170.93,170.86,1.17015773]
[1721930569984,15.5516,170.93,170.85,65.0]
[1721930571496,15.5516,170.93,170.85,20.0]
[1721930571795,15.5516,170.93,170.79,21.17042943]
[1721930572089,15.5516,170.93,170.8,21.17039388]
[1721930572297,15.5516,170.93,170.81,20.0]
[1721930572601,15.5516,170.93,170.82,20.0]
[1721930572788,15.5516,170.93,170.83,45.0]
[1721930572988,15.5516,170.93,170.84,21.17051361]
[1721930573180,15.5516,170.93,170.85,45.0]
[1721930573506,15.5516,170.93,170.85,46.17048229]
[1721930574475,15.5516,170.93,170.85,45.0]
[1721930576484,15.5516,170.93,170.79,1.17056681]
[1721930576681,15.5516,170.93,170.8,1.17062723]
[1721930577198,15.5516,170.93,170.8,66.17062723]
[1721930577489,15.5516,170.93,170.82,20.0]
[1721930577691,15.5516,170.93,170.84,20.0]
[1721930577903,15.5516,170.93,170.85,46.17006849]
[1721930578082,15.5516,170.93,170.86,21.17006849]
[1721930578277,15.5516,170.93,170.87,45.0]
[1721930581787,6.0456,170.98,170.89,20.0]
[1721930581988,6.0456,170.98,170.9,66.16978208]
[1721930582203,16.0961,171.0,170.9,66.16978208]
[1721930583012,16.0961,171.0,170.9,45.0]
[1721930583377,16.0961,171.0,170.83,6.0444]
[1721930583378,380.5,170.99,170.83,6.0444]
[1721930583600,6.0101,170.98,170.84,21.17034304]
[1721930584008,6.0101,170.98,170.86,20.0]
[1721930584202,6.0101,170.98,170.87,1.16992663]
[1721930584911,6.0101,170.98,170.87,46.16992663]
[1721930585089,6.0101,170.98,170.88,20.0]
[1721930585289,6.0101,170.98,170.89,46.16993852]
[1721930585488,6.0101,170.98,170.9,21.16993557]
[1721930585698,6.0101,170.98,170.91,45.0]
[1721930585902,6.0101,170.98,170.92,1.16993593]
[1721930586284,6.0101,170.98,170.91,45.0]
[1721930586790,39.3101,170.98,170.84,20.0]
[1721930587109,39.3101,170.98,170.85,1.17014353]
[1721930587314,39.3101,170.98,170.86,1.17011594]
[1721930587889,39.3101,170.98,170.87,20.0]
[1721930588089,6.0101,170.98,170.88,66.16999326]
[1721930588500,396.5961,171.0,170.88,66.16999326]
[1721930588712,16.0961,171.0,170.91,20.0]
[1721930588885,16.0961,171.0,170.93,20.0]
[1721930589081,16.0961,171.0,170.94,21.169558]
[1721930589307,16.0961,171.0,170.95,45.0]
[1721930589605,6.1265,171.03,170.95,65.0]
[1721930589805,6.1265,171.03,170.96,1.16952734]
[1721930590389,6.1265,171.03,170.96,21.16952734]
[1721930590598,6.1265,171.03,170.97,45.0]
[1721930590808,6.1265,171.03,170.95,46.16946194]
[1721930590995,6.1265,171.03,170.96,1.16949727]
[1721930592812,6.1265,171.03,170.95,45.0]
[1721930593111,6.1265,171.03,170.94,20.0]
[1721930593291,6.1265,171.03,170.95,1.16973599]
[1721930593487,6.1265,171.03,170.96,1.16959341]
[1721930593706,6.1265,171.03,170.92,1.16962465]
[1721930593918,6.1265,171.03,170.93,1.16964576]
[1721930594703,6.1265,171.03,170.93,21.16964576]
[1721930594994,6.1265,171.03,170.94,45.0]
[1721930595300,6.1265,171.03,170.95,1.1696462]
[1721930595495,6.1265,171.03,170.94,45.0]
[1721930595496,6.1265,171.03,170.96,1.16964895]
[1721930596616,6.1265,171.03,170.82,36.4492]
[1721930596617,5.8476,171.01,170.87,21.16972096]
[1721930596812,15.7694,171.02,170.87,21.16972096]
[1721930597724,33.3,171.0,170.86,6.1124583]
[1721930597895,15.4685,170.96,170.86,6.1124583]
[1721930598292,15.4685,170.96,170.83,1.16993377]
[1721930598515,15.4685,170.96,170.84,6.11437581]
[1721930599098,15.4685,170.96,170.87,20.0]
[1721930599312,15.4685,170.96,170.88,21.16993559]
[1721930600099,15.4685,170.96,170.88,1.16993559]
[1721930600501,15.4685,170.96,170.88,20.0]
[1721930600701,15.4685,170.96,170.89,45.0]
[1721930602135,15.4685,170.96,170.88,20.0]
[1721930602317,15.4685,170.96,170.85,1.17021066]
[1721930602630,15.4685,170.96,170.85,20.0]
[1721930604022,15.4685,170.96,170.87,20.0]
[1721930604232,15.4685,170.96,170.88,21.16995167]
[1721930604435,15.4685,170.96,170.89,45.0]
[1721930604746,15.4685,170.96,170.9,21.16995201]
[1721930604927,15.4685,170.96,170.91,45.0]
[1721930606608,15.4685,170.96,170.92,1.16994048]
[1721930606824,15.4685,170.96,170.93,1.16988958]
[1721930607019,15.4685,170.96,170.91,45.0]
[1721930607515,15.4685,170.96,170.92,21.16979895]
[1721930607718,21.7934,171.01,170.93,45.0]
[1721930608114,21.7934,171.01,170.94,20.0]
[1721930608311,21.7934,171.01,170.95,45.0]
[1721930610133,21.7934,171.01,170.96,1.16951267]
[1721930610520,21.7934,171.01,170.96,21.16951267]
[1721930610835,21.7934,171.01,170.97,45.0]
[1721930611039,21.7946,171.06,170.98,21.1694984]
[1721930611229,21.7946,171.06,170.99,46.16923698]
[1721930612042,21.7946,171.06,171.0,20.0]
[1721930612273,21.7946,171.06,171.01,1.16915678]
[1721930612418,21.7946,171.06,171.01,45.0]
[1721930612617,21.7946,171.06,171.02,20.0]
[1721930612818,21.7946,171.06,171.03,45.0]
[1721930613324,15.2792,171.06,171.03,45.0]
[1721930614651,15.2792,171.06,170.94,20.0]
[1721930614818,15.2792,171.06,170.95,21.16940955]
[1721930615424,15.2792,171.06,170.96,1.169426]
[1721930615820,15.2792,171.06,170.96,21.169426]
[1721930616037,15.2792,171.06,170.97,20.0]
[1721930616245,15.2792,171.06,170.98,21.16935601]
[1721930616431,15.2792,171.06,170.97,20.0]
[1721930616432,15.2792,171.06,171.0,20.0]
[1721930616627,15.2792,171.06,171.01,1.16912016]
[1721930616824,15.2792,171.06,171.02,1.16912046]
[1721930617049,15.2792,171.06,171.02,21.16912046]
[1721930617349,15.2792,171.06,171.03,45.0]
[1721930617552,15.2792,171.06,171.04,1.16912062]
[1721930618151,15.2792,171.06,171.03,45.0]
[1721930618943,15.585,171.13,171.04,20.0]
[1721930619150,15.585,171.13,171.05,66.16881541]
[1721930620335,15.585,171.13,171.05,66.16877247]
[1721930620866,15.585,171.13,171.06,20.0]
[1721930621031,15.585,171.13,171.07,66.16869075]
[1721930621948,15.585,171.13,171.07,65.0]
[1721930622343,15.585,171.13,171.07,45.0]
[1721930623951,15.585,171.13,171.01,1.16895181]
[1721930624156,15.585,171.13,171.01,21.16895181]
[1721930624830,15.585,171.13,171.02,20.0]
[1721930625030,15.585,171.13,170.99,20.0]
[1721930625246,12.4353,171.12,170.99,1.16921886]
[1721930625557,33.3,171.1,170.97,1.16935247]
[1721930625855,33.3,171.1,170.98,20.0]
[1721930626039,33.3,171.1,170.99,1.16915117]
[1721930626352,33.3,171.1,170.98,21.16916632]
[1721930626536,33.3,171.1,170.98,20.0]
[1721930626735,33.3,171.1,170.99,66.16926262]
[1721930627566,33.3,171.1,170.99,65.0]
[1721930627741,22.0974,171.09,170.99,20.0]
[1721930628055,22.0974,171.09,171.0,1.16940865]
[1721930628558,22.0974,171.09,170.98,21.16920154]
[1721930628857,22.0974,171.09,170.99,45.0]
[1721930629059,22.0974,171.09,171.0,20.0]
[1721930629235,22.0974,171.09,171.01,45.0]
[1721930630229,51.6774,171.09,171.01,45.0]
[1721930632152,51.6774,171.09,171.02,1.16920421]
[1721930632464,22.0974,171.09,171.02,20.0]
[1721930632633,22.0974,171.09,171.03,45.0]
[1721930633668,51.6774,171.09,171.03,45.0]
[1721930635957,51.6774,171.09,170.97,6.11327956]
[1721930635958,29.58,171.06,170.97,7.28259886]
[1721930636142,29.58,171.06,170.93,1.1693193]
[1721930636350,29.58,171.06,170.94,20.0]
[1721930636550,29.58,171.06,170.96,6.11550261]
[1721930636863,29.58,171.06,170.96,1.16940833]
[1721930637064,29.58,171.06,170.96,7.2842973]
[1721930637364,29.58,171.06,170.97,65.0]
[1721930637533,29.58,171.06,170.98,21.16931725]
[1721930637740,29.58,171.06,170.99,46.16931825]
[1721930638065,29.58,171.06,171.0,20.0]
[1721930638240,29.58,171.06,171.01,45.0]
[1721930638568,51.6774,171.09,171.01,45.0]
[1721930641939,51.6774,171.09,171.01,46.1692947]
[1721930642364,51.6774,171.09,171.01,45.0]
[1721930642869,15.6402,171.02,170.96,1.01768599]
[1721930649548,15.6402,171.02,170.97,1.16947148]
[1721930650445,44.5928,171.06,170.97,1.16947148]
[1721930651247,44.5928,171.06,170.96,1.01768599]
[1721930651452,44.5928,171.06,170.96,2.18718099]
[1721930651650,29.58,171.03,170.96,1.01768599]
[1721930653684,15.3057,170.99,170.96,1.01768599]
[1721930653979,29.58,170.97,170.83,6.2956]
[1721930654273,29.58,170.97,170.9,1.01849838]
[1721930654466,29.58,170.97,170.84,1.17024058]
[1721930654672,29.58,170.97,170.84,8.30404464]
[1721930655055,395.8057,170.99,170.88,20.0]
[1721930655281,395.8057,170.99,170.89,1.16988122]
[1721930655450,425.3857,170.99,170.86,20.0]
[1721930655771,425.3857,170.99,170.87,20.0]
[1721930656074,425.3857,170.99,170.88,1.17001717]
[1721930656247,425.3857,170.99,170.88,21.17001717]
[1721930656453,425.3857,170.99,170.89,45.0]
[1721930656651,425.3857,170.99,170.9,21.1699091]
[1721930656875,395.8057,170.99,170.91,45.0]
[1721930657061,395.8057,170.99,170.92,21.16976381]
[1721930657299,395.8057,170.99,170.93,46.16976714]
[1721930657475,395.8057,170.99,170.94,20.0]
[1721930657678,395.8057,170.99,170.95,45.0]
[1721930658177,425.3857,170.99,170.87,1.16980492]
[1721930658376,425.3857,170.99,170.86,65.0]
[1721930658676,29.58,170.96,170.84,7.13380406]
[1721930658975,29.58,170.96,170.85,1.17032746]
[1721930659279,29.58,170.96,170.86,1.17026925]
[1721930659667,29.58,170.96,170.85,20.0]
[1721930659855,29.58,170.96,170.86,65.0]
[1721930660057,29.58,170.96,170.84,7.13380406]
[1721930661561,29.58,170.96,170.85,21.17026433]
[1721930661774,29.58,170.96,170.86,46.17026364]
[1721930661984,29.58,170.96,170.87,20.0]
[1721930662163,29.58,170.96,170.88,46.17024925]
[1721930662362,29.58,170.89,170.84,7.13380406]
[1721930662661,29.58,170.86,170.77,1.17073946]
[1721930662863,21.3624,170.88,170.77,7.28388041]
[1721930663957,21.3624,170.88,170.78,20.0]
[1721930664155,21.3624,170.88,170.77,7.28363499]
[1721930664795,21.3624,170.88,170.78,65.0]
[1721930665568,1.32874845,170.87,170.78,65.0]
[1721930665876,21.3624,170.88,170.78,65.0]
[1721930666880,21.3624,170.88,170.78,20.0]
[1721930667092,1.32874845,170.87,170.78,20.0]
[1721930667271,29.58,170.85,170.77,1.01342573]
[1721930667473,29.58,170.85,170.76,0.5]
[1721930667776,29.58,170.85,170.76,1.67090405]
[1721930668371,29.58,170.85,170.76,46.67090405]
[1721930669490,22.69114845,170.88,170.77,1.17097386]
[1721930669491,21.3624,170.88,170.77,1.17097386]
[1721930670382,1.32874845,170.87,170.76,45.5]
[1721930670571,29.58,170.85,170.77,1.01350213]
[1721930672587,29.58,170.85,170.78,1.1709009]
[1721930672972,29.58,170.85,170.78,45.0]
[1721930673173,29.58,170.85,170.79,1.17085137]
[1721930673379,29.58,170.85,170.8,1.17078042]
[1721930674083,21.3624,170.88,170.76,0.5]
[1721930674084,29.58,170.81,170.76,0.5]
[1721930680188,29.58,170.81,170.76,1.67101133]
[1721930680388,29.58,170.81,170.76,0.5]
[1721930680599,35.4356,170.78,170.73,1.01919491]
[1721930680888,22.91264845,170.8,170.64,20.0]
[1721930680889,29.58,170.75,170.65,1.17149106]
[1721930681086,29.58,170.75,170.66,6.11887426]
[1721930681890,29.58,170.75,170.67,20.0]
[1721930683682,29.58,170.75,170.68,45.0]
[1721930687800,1.32874845,170.74,170.68,45.0]
[1721930688096,29.58,170.75,170.68,45.0]
[1721930688799,1.32874845,170.74,170.68,45.0]
[1721930689007,29.58,170.75,170.68,45.0]
[1721930689300,1.32874845,170.74,170.68,45.0]
[1721930689498,29.58,170.69,170.64,1.01950684]
[1721930689798,29.58,170.72,170.59,9.98504131]
[1721930689799,29.58,170.66,170.59,0.8073535]
[1721930689991,16.5299,170.65,170.59,0.8073535]
[1721930690595,29.58,170.63,170.59,0.8073535]
[1721930696399,1.32874845,170.62,170.59,0.8073535]
[1721930697405,1.32874845,170.61,170.59,0.8073535]
[1721930697702,29.58,170.63,170.59,0.8073535]
[1721930697703,30.90874845,170.6,170.59,0.8073535]
[1721930698193,29.58,170.6,170.59,0.8073535]
[1721930698388,30.90874845,170.6,170.59,0.8073535]
[1721930698784,16.0325,170.59,170.47,12.24992369]
[1721930699088,16.0325,170.59,170.46,7.11190454]
[1721930699089,29.58,170.54,170.46,6.0911]
[1721930699498,1.32874845,170.53,170.44,6.12735156]
[1721930699984,29.58,170.54,170.44,6.12735156]
[1721930700302,29.58,170.54,170.45,1.17308723]
[1721930700485,29.58,170.54,170.43,1.0198891]
[1721930700688,29.58,170.54,170.44,1.17311903]
[1721930700886,29.58,170.51,170.42,6.93122436]
[1721930701411,29.58,170.48,170.42,0.8073535]
[1721930701717,30.90874845,170.48,170.42,0.8073535]
[1721930702423,29.58,170.45,170.42,0.8073535]
[1721930702618,6.5127,170.47,170.36,6.12279679]
[1721930702619,29.58,170.39,170.36,6.12279679]
[1721930702915,29.58,170.39,170.28,1.02015286]
[1721930703288,298.5192,170.47,170.28,1.02015286]
[1721930703289,1.32874845,170.43,170.28,2.19424565]
[1721930703490,298.5192,170.47,170.28,2.19424565]
[1721930703491,29.58,170.39,170.28,22.19424565]
[1721930703720,29.58,170.39,170.3,20.0]
[1721930703888,29.58,170.39,170.31,1.17390791]
[1721930704297,29.58,170.39,170.31,21.17390791]
[1721930704495,1.32874845,170.45,170.31,21.17390791]
[1721930704802,29.58,170.41,170.32,45.0]
[1721930704991,298.5192,170.47,170.33,21.17390957]
[1721930705202,29.58,170.44,170.33,41.17390957]
[1721930705398,29.58,170.44,170.34,45.0]
[1721930705820,29.58,170.44,170.33,21.17390957]
[1721930705990,29.58,170.44,170.35,1.1736774]
[1721930706422,29.58,170.44,170.33,1.17370928]
[1721930707128,29.58,170.44,170.32,21.17378184]
[1721930707351,29.58,170.44,170.33,65.0]
[1721930707626,29.58,170.44,170.33,46.17379263]
[1721930707826,29.58,170.41,170.3,20.0]
[1721930708032,29.58,170.41,170.3,21.17380724]
[1721930708612,29.58,170.41,170.3,1.17380724]
[1721930709843,1.32874845,170.4,170.3,20.0]
[1721930710134,1.32874845,170.4,170.31,45.0]
[1721930710429,1.32874845,170.4,170.32,20.0]
[1721930710634,1.32874845,170.4,170.33,45.0]
[1721930710826,29.58,170.41,170.33,45.0]
[1721930711218,1.32874845,170.4,170.33,45.0]
[1721930711927,29.58,170.41,170.33,45.0]
[1721930713516,29.58,170.44,170.34,20.0]
[1721930713717,29.58,170.44,170.35,45.0]
[1721930715437,29.58,170.44,170.36,1.17369194]
[1721930715607,29.58,170.44,170.35,45.0]
[1721930720337,29.58,170.39,170.29,6.12165902]
[1721930720515,35.449,170.39,170.29,6.12165902]
[1721930720716,29.58,170.33,170.25,1.98144944]
[1721930720911,29.58,170.33,170.25,0.8073535]
[1721930721935,30.90874845,170.33,170.25,0.8073535]
[1721930722239,45.0758,170.27,170.25,0.8073535]
[1721930722448,52.27764845,170.27,170.25,0.8073535]
[1721930722834,46.40454845,170.27,170.25,0.8073535]
[1721930723139,46.40454845,170.27,170.17,1.01827505]
[1721930723140,5.8734,170.26,170.17,1.01827505]
[1721930723451,29.58,170.21,170.09,21.17531166]
[1721930723651,1.32874845,170.2,170.13,1.01888569]
[1721930723818,29.58,170.21,170.09,23.56108639]
[1721930724016,29.58,170.21,170.09,22.38577473]
[1721930724017,1.32874845,170.2,170.09,22.38577473]
[1721930724350,29.58,170.21,170.13,1.01884633]